bitfinex/quotes_ETHUSD_20240910
["timestamp","ask_amount","ask_price","bid_price","bid_amount"]
[1725987846158,2.39390773,2346.9,2346.5,0.0130449]
[1725987847194,0.03090773,2346.8,2346.5,0.0130449]
[1725987848405,0.03090773,2347.0,2346.5,0.0130449]
[1725987849164,4.29167773,2347.0,2346.5,0.0130449]
[1725987849364,3.0,2346.9,2346.5,0.0130449]
[1725987849564,0.03090773,2346.8,2346.5,0.0130449]
[1725987850168,2.3026,2346.7,2346.5,0.0130449]
[1725987850500,0.03090773,2346.6,2346.5,0.0130449]
[1725987854385,2.51890773,2346.8,2346.5,0.0130449]
[1725987854581,3.03090773,2346.7,2346.5,0.0130449]
[1725987854817,0.03090773,2346.7,2346.5,0.0130449]
[1725987855016,3.03090773,2346.7,2346.5,0.0130449]
[1725987860411,6.54258,2346.6,2346.5,0.0130449]
[1725987860756,10.83496773,2346.6,2346.5,0.0130449]
[1725987860905,22.19737485,2346.6,2346.5,0.0130449]
[1725987861540,22.64294467,2346.6,2346.5,0.0130449]
[1725987861935,17.93589485,2346.6,2346.5,0.0130449]
[1725987862236,14.28059677,2346.6,2346.5,0.0130449]
[1725987862467,13.83496773,2346.6,2346.5,0.0130449]
[1725987862851,14.28059903,2346.6,2346.5,0.0130449]
[1725987864391,27.77850685,2346.6,2346.5,0.0130449]
[1725987864591,27.24837485,2346.6,2346.5,0.0130449]
[1725987864881,27.69405273,2346.6,2346.5,0.0130449]
[1725987865234,19.33164561,2346.6,2346.5,0.0130449]
[1725987865481,18.88596773,2346.6,2346.5,0.0130449]
[1725987865849,19.33162134,2346.6,2346.5,0.0130449]
[1725987867432,27.69402846,2346.6,2346.5,0.0130449]
[1725987867978,22.74737485,2346.6,2346.5,0.0130449]
[1725987868135,23.19306264,2346.6,2346.5,0.0130449]
[1725987869169,27.45454264,2346.6,2346.5,0.0130449]
[1725987869382,23.19306264,2346.6,2346.5,0.0130449]
[1725987871174,14.83065552,2346.6,2346.5,0.0130449]
[1725987871405,19.09213552,2346.6,2346.5,0.0130449]
[1725987871611,14.83065552,2346.6,2346.5,0.0130449]
[1725987872489,19.09213552,2346.6,2346.5,0.0130449]
[1725987872887,23.19306264,2346.6,2346.5,0.0130449]
[1725987874620,23.19306264,2346.6,2345.4,2.2988]
[1725987874621,4.26261,2346.0,2345.9,0.0238035]
[1725987874820,4.29351773,2346.0,2345.9,0.0437055]
[1725987875116,3.03090773,2346.0,2345.9,0.0437055]
[1725987876174,3.03090773,2346.2,2345.9,0.0437055]
[1725987877210,7.29312773,2346.2,2345.9,0.0437055]
[1725987877506,3.03090773,2346.2,2345.9,0.0437055]
[1725987878024,7.29312773,2346.2,2345.9,0.0437055]
[1725987878220,4.26249,2346.1,2345.9,0.0437055]
[1725987878452,3.03090773,2346.0,2345.9,0.0437055]
[1725987881715,7.29347773,2346.0,2345.9,0.0437055]
[1725987881918,11.55604773,2346.0,2345.9,0.0437055]
[1725987884734,7.29347773,2346.0,2345.9,0.0437055]
[1725987885146,3.03090773,2346.0,2345.9,0.0437055]
[1725987887166,7.29347773,2346.0,2345.9,0.0437055]
[1725987887323,3.03090773,2346.0,2345.9,0.0437055]
[1725987888646,0.03090773,2346.0,2345.9,0.0437055]
[1725987889670,0.03090773,2346.1,2345.9,0.0437055]
[1725987890518,0.03090773,2346.1,2346.0,2.2649]
[1725987890819,0.03090773,2346.2,2346.0,2.2649]
[1725987891658,0.03090773,2346.3,2346.0,2.284802]
[1725987892916,0.03090773,2346.3,2346.0,2.92575526]
[1725987893119,0.03090773,2346.4,2346.0,7.02668238]
[1725987893320,0.03090773,2346.4,2346.1,2.4696]
[1725987893870,1.78026023,2346.5,2346.3,2.4696]
[1725987893871,0.03090773,2346.5,2346.3,2.4696]
[1725987894035,1.78026023,2346.7,2346.3,2.4696]
[1725987894242,0.03090773,2346.6,2346.3,2.4696]
[1725987894423,0.03090773,2346.6,2346.3,3.12864291]
[1725987894773,0.03090773,2346.6,2346.3,3.14854491]
[1725987895272,0.03090773,2346.7,2346.3,3.14854491]
[1725987895649,1.81116796,2346.7,2346.3,3.14854491]
[1725987895970,0.03090773,2346.7,2346.5,2.3124]
[1725987898239,4.78026023,2346.8,2346.5,2.3124]
[1725987898879,1.78026023,2346.8,2346.5,2.3124]
[1725987899882,4.81116796,2346.9,2346.5,2.3124]
[1725987900182,4.81116796,2346.9,2346.7,2.3497]
[1725987900183,4.78026023,2346.9,2346.7,2.3497]
[1725987900944,3.83915637,2347.0,2346.8,4.10092712]
[1725987900945,1.78026023,2347.0,2346.8,4.10092712]
[1725987901169,3.0,2347.0,2346.8,4.74598983]
[1725987901370,3.03090773,2347.1,2346.8,4.74598983]
[1725987901686,4.81116796,2347.2,2346.9,2.3497]
[1725987901981,4.81116796,2347.2,2346.9,2.82429898]
[1725987901982,3.0,2347.0,2346.9,2.82429898]
[1725987902189,0.03090773,2347.2,2346.9,2.82429898]
[1725987902635,0.03090773,2347.2,2346.9,2.3497]
[1725987902856,1.81116796,2347.2,2346.9,2.3497]
[1725987903568,4.81116796,2347.2,2346.9,2.3497]
[1725987903770,1.78026023,2347.4,2347.0,4.10092712]
[1725987903982,4.81116796,2347.4,2347.1,2.4274]
[1725987904150,3.03090773,2347.4,2347.1,2.4274]
[1725987904353,0.03090773,2347.4,2347.1,2.4274]
[1725987905553,0.03090773,2347.4,2346.8,2.4194]
[1725987905799,1.78026023,2347.3,2346.8,2.4194]
[1725987906000,0.03090773,2347.2,2346.8,2.4194]
[1725987906527,0.03090773,2347.2,2346.8,7.17235983]
[1725987906803,0.03090773,2347.2,2346.8,6.52032712]
[1725987907005,0.03090773,2347.3,2346.8,6.52032712]
[1725987907500,0.03090773,2347.3,2346.5,2.4194]
[1725987907501,6.04075023,2347.2,2346.5,2.4194]
[1725987907795,0.03090773,2347.1,2346.5,2.4194]
[1725987908180,3.03090773,2347.1,2346.5,2.4194]
[1725987908967,3.03090773,2347.1,2346.6,4.10092712]
[1725987909180,0.03090773,2347.1,2346.6,4.10092712]
[1725987909385,0.03090773,2347.1,2346.6,4.75495003]
[1725987909609,0.03090773,2347.1,2346.7,2.271]
[1725987909807,3.03090773,2347.3,2346.7,2.271]
[1725987910100,0.03090773,2347.2,2346.7,2.271]
[1725987910612,0.03090773,2347.2,2346.8,4.10092712]
[1725987911085,0.03090773,2347.4,2346.8,4.10092712]
[1725987911819,0.03090773,2347.4,2346.9,2.3928]
[1725987917375,0.03090773,2347.4,2347.0,4.10092712]
[1725987917612,0.03090773,2347.5,2347.3,2.3561]
[1725987917814,3.35697423,2347.7,2347.3,2.3561]
[1725987917994,0.03480923,2347.8,2347.4,4.10092712]
[1725987918407,0.0039015,2347.8,2347.6,4.10092712]
[1725987918588,0.03480923,2347.8,2347.4,4.10092712]
[1725987918794,0.03480923,2347.8,2347.3,2.3561]
[1725987921224,0.0039015,2347.8,2347.6,4.10092712]
[1725987924038,0.0039015,2347.8,2347.3,2.4105]
[1725987924209,0.03480923,2347.8,2347.3,2.4105]
[1725987928622,0.03480923,2347.8,2347.4,4.10092712]
[1725987929845,0.0039015,2347.8,2347.4,4.10092712]
[1725987930845,2.4222015,2347.8,2347.2,4.10092712]
[1725987931141,0.03090773,2347.7,2347.2,4.10092712]
[1725987934414,0.03480923,2347.8,2347.4,4.10092712]
[1725987934711,0.0039015,2347.8,2347.4,4.10092712]
[1725987936009,0.0039015,2347.8,2347.2,0.08520189]
[1725987936010,2.3781,2347.7,2347.2,4.18612901]
[1725987936214,0.03090773,2347.6,2347.2,4.10092712]
[1725987936733,0.03090773,2347.6,2347.2,6.53782712]
[1725987936926,0.03090773,2347.6,2347.2,7.19160983]
[1725987937749,0.03480923,2347.8,2347.2,7.19160983]
[1725987939261,0.03480923,2347.8,2347.2,6.53782712]
[1725987940944,1.81506946,2347.8,2347.2,6.53782712]
[1725987941671,1.81506946,2347.8,2347.2,4.10092712]
[1725987942984,1.81506946,2347.8,2347.3,2.3202]
[1725987943292,0.0039015,2347.8,2347.4,4.10092712]
[1725987944378,2.2675015,2347.8,2347.3,2.3202]
[1725987944546,0.03090773,2347.7,2347.3,2.3202]
[1725987945492,1.81116796,2347.7,2347.2,4.10092712]
[1725987945662,0.03090773,2347.7,2347.2,4.10092712]
[1725987946282,1.81116796,2347.7,2347.2,4.10092712]
[1725987946992,0.03090773,2347.7,2347.2,4.10092712]
[1725987947191,1.81116796,2347.7,2347.2,4.76637988]
[1725987947584,0.03090773,2347.7,2347.2,4.76637988]
[1725987947788,1.78416173,2347.8,2347.4,4.10092712]
[1725987948091,0.0039015,2347.8,2347.4,4.81793515]
[1725987949209,0.03480923,2347.8,2347.4,4.81793515]
[1725987949371,0.03480923,2347.8,2347.4,4.10092712]
[1725987952169,0.03480923,2347.8,2347.3,2.3185]
[1725987952367,1.81506946,2347.8,2347.2,4.10092712]
[1725987952568,4.20836023,2347.7,2347.0,4.10092712]
[1725987952806,4.20836023,2347.7,2346.5,3.51050926]
[1725987952807,1.78026023,2347.5,2346.8,4.10092712]
[1725987953098,0.03090773,2347.4,2346.8,4.10092712]
[1725987953407,6.67861,2347.3,2346.4,6.61122912]
[1725987953555,2.4183,2347.1,2346.4,6.61122912]
[1725987953753,0.03090773,2347.0,2346.4,6.61122912]
[1725987953963,2.44920773,2347.1,2346.6,4.10092712]
[1725987954271,2.44920773,2347.1,2346.4,3.17142491]
[1725987954272,3.03090773,2347.2,2346.8,4.10092712]
[1725987955402,4.81116796,2347.2,2346.8,4.10092712]
[1725987956362,4.65163617,2347.3,2347.0,4.10092712]
[1725987956363,2.4183,2347.3,2347.0,4.10092712]
[1725987956563,2.4183,2347.3,2347.0,4.51101983]
[1725987956564,5.4183,2347.3,2347.0,4.51101983]
[1725987956900,5.4183,2347.3,2347.0,4.10092712]
[1725987957705,7.19856023,2347.3,2347.0,4.10092712]
[1725987957890,7.22946796,2347.3,2347.0,4.10092712]
[1725987958074,0.03090773,2347.2,2346.8,4.10092712]
[1725987958707,0.03090773,2347.2,2346.6,4.10092712]
[1725987958934,1.81116796,2347.2,2346.6,4.10092712]
[1725987960006,0.03090773,2347.2,2346.8,4.10092712]
[1725987960209,1.81116796,2347.2,2347.0,4.10092712]
[1725987960507,7.22946796,2347.3,2346.8,4.10092712]
[1725987960663,7.22946796,2347.3,2347.0,4.10092712]
[1725987960664,4.22946796,2347.3,2347.0,4.10092712]
[1725987960892,0.03090773,2347.2,2347.0,4.10092712]
[1725987961098,4.22946796,2347.3,2347.0,4.10092712]
[1725987961305,1.78026023,2347.2,2347.0,4.10092712]
[1725987961516,1.78026023,2347.3,2347.0,4.75689983]
[1725987961967,1.78026023,2347.4,2347.2,4.10092712]
[1725987962170,1.78026023,2347.4,2347.2,4.5766171]
[1725987962473,1.78026023,2347.4,2347.2,4.10092712]
[1725987963263,1.78026023,2347.5,2347.2,4.10092712]
[1725987963465,1.78026023,2347.6,2347.2,4.10092712]
[1725987963772,1.78026023,2347.6,2347.2,4.58513751]
[1725987963996,1.78026023,2347.5,2347.2,4.58513751]
[1725987965457,1.78026023,2347.5,2347.2,4.10092712]
[1725987967303,1.81116796,2347.5,2347.0,4.10092712]
[1725987967506,1.78026023,2347.4,2347.0,4.10092712]
[1725987967665,1.81116796,2347.5,2347.2,4.10092712]
[1725987967866,1.81116796,2347.6,2347.2,4.10092712]
[1725987968200,1.78026023,2347.5,2347.2,6.58922712]
[1725987968516,1.78026023,2347.6,2347.4,4.10092712]
[1725987969703,1.78026023,2347.5,2347.4,4.10092712]
[1725987969905,1.78026023,2347.6,2347.4,4.10092712]
[1725987970986,1.78026023,2347.5,2347.4,4.10092712]
[1725987971873,1.78026023,2347.6,2347.4,4.10092712]
[1725987973715,1.78026023,2347.6,2347.2,6.58922712]
[1725987974214,2.4107,2347.5,2346.9,0.08519898]
[1725987974436,2.4107,2347.5,2346.8,4.10092712]
[1725987974437,1.78026023,2347.4,2346.8,4.10092712]
[1725987974589,1.78026023,2347.2,2346.8,4.10092712]
[1725987974789,1.81116796,2347.2,2346.8,4.10092712]
[1725987975475,1.81116796,2347.2,2346.6,0.08521327]
[1725987975476,2.4107,2347.1,2346.6,4.18614039]
[1725987976121,2.4107,2347.1,2346.8,4.10092712]
[1725987978228,1.81116796,2347.2,2346.8,4.10092712]
[1725987978446,0.03090773,2347.2,2346.8,4.10092712]
[1725987979395,4.81116796,2347.3,2346.8,4.10092712]
[1725987979598,4.81116796,2347.3,2347.0,4.10092712]
[1725987980311,1.81116796,2347.3,2347.0,4.10092712]
[1725987983731,1.78026023,2347.3,2347.0,4.10092712]
[1725987984028,2.40340773,2347.2,2346.8,4.10092712]
[1725987984215,0.03090773,2347.3,2346.8,0.08521293]
[1725987984427,4.56689885,2347.5,2347.2,6.46572712]
[1725987984428,1.78026023,2347.5,2347.2,6.46572712]
[1725987984589,12.06026023,2347.6,2347.2,6.46572712]
[1725987984930,12.06026023,2347.6,2347.4,4.10092712]
[1725987985332,9.06026023,2347.6,2347.4,4.10092712]
[1725987985956,1.78416173,2347.8,2347.4,4.10092712]
[1725987986109,1.78416173,2347.8,2347.6,4.10092712]
[1725987986845,0.0039015,2347.8,2347.6,4.10092712]
[1725987987252,1.78416173,2347.8,2347.6,4.10092712]
[1725987989033,0.0039015,2347.8,2347.6,4.10092712]
[1725987989248,1.78416173,2347.8,2347.6,4.10092712]
[1725987990422,1.78416173,2347.8,2347.6,4.90534543]
[1725987990625,0.0039015,2347.8,2347.6,4.90534543]
[1725987990920,0.0039015,2347.8,2347.7,2.3326]
[1725987992529,0.0039015,2347.8,2347.6,4.90534543]
[1725987996175,0.0039015,2347.8,2347.6,4.10092712]
[1725987997061,0.0039015,2347.8,2347.7,2.40768655]
[1725987998954,0.0039015,2347.8,2347.6,4.10092712]
[1725988001787,0.0039015,2347.8,2347.7,2.35888524]
[1725988005946,0.0039015,2347.8,2347.6,4.10092712]
[1725988006609,0.0039015,2347.8,2347.6,4.763258]
[1725988011376,0.0039015,2347.8,2347.6,4.10092712]
[1725988012194,0.0039015,2347.8,2347.7,1.88348981]
[1725988015423,2.4617015,2347.8,2347.1,2.2757]
[1725988015632,2.4617015,2347.8,2347.7,1.88348981]
[1725988017037,0.0039015,2347.8,2347.7,1.88348981]
[1725988021328,0.0039015,2347.8,2347.5,1.88348981]
[1725988021916,0.0039015,2347.8,2347.7,1.88348981]
[1725988023411,2.3413,2347.7,2347.5,1.88348981]
[1725988027251,0.03090773,2347.6,2346.8,2.3916]
[1725988027419,2.4709,2347.5,2347.2,1.88348981]
[1725988027805,2.4709,2347.5,2346.9,0.08519999]
[1725988027806,2.4709,2347.5,2347.4,1.88348981]
[1725988028406,2.4709,2347.5,2347.2,1.88348981]
[1725988028610,2.2997,2347.3,2346.6,1.88348981]
[1725988028810,2.2997,2347.1,2346.6,1.88348981]
[1725988029229,2.2997,2347.1,2346.8,1.88348981]
[1725988029617,2.2997,2347.1,2347.0,1.88348981]
[1725988030359,2.2997,2347.1,2346.8,4.08436889]
[1725988030564,0.03090773,2347.0,2346.4,1.45929909]
[1725988030792,4.27496023,2346.9,2346.4,0.019902]
[1725988031058,0.03090773,2346.8,2346.4,0.019902]
[1725988031260,1.81116796,2346.8,2346.4,0.019902]
[1725988031469,0.03090773,2346.8,2346.4,0.019902]
[1725988031620,0.03090773,2346.8,2346.5,4.08436889]
[1725988033065,1.81116796,2346.8,2346.5,4.08436889]
[1725988033663,1.78026023,2346.7,2346.5,4.08436889]
[1725988034032,1.81116796,2346.8,2346.5,4.08436889]
[1725988035274,1.78026023,2346.8,2346.4,0.019902]
[1725988035479,5.68023449,2347.1,2346.7,4.08436889]
[1725988035480,2.23352874,2347.1,2346.7,4.08436889]
[1725988035626,4.63713647,2347.2,2346.9,4.08436889]
[1725988035834,4.60622874,2347.2,2346.9,4.08436889]
[1725988037865,4.61094639,2347.2,2346.9,4.08436889]
[1725988039449,5.68589567,2347.4,2346.9,4.08436889]
[1725988039450,7.58054639,2347.4,2346.9,4.08436889]
[1725988039774,3.0,2347.3,2346.9,4.49280578]
[1725988040074,7.58054639,2347.4,2346.9,4.49280578]
[1725988040372,2.3423,2347.4,2347.1,4.08436889]
[1725988041083,0.03090773,2347.5,2347.1,4.08436889]
[1725988043189,2.23668954,2347.8,2347.3,4.08436889]
[1725988043489,2.23668954,2347.8,2347.1,4.50132692]
[1725988043490,2.4078,2347.5,2347.1,4.50132692]
[1725988043784,2.4078,2347.5,2347.1,4.08436889]
[1725988043785,0.03090773,2347.4,2347.1,4.08436889]
[1725988043937,2.4078,2347.5,2347.1,4.08436889]
[1725988046068,2.4078,2347.5,2346.9,4.08436889]
[1725988046275,0.03090773,2347.4,2347.0,0.08520525]
[1725988046897,0.03090773,2347.4,2346.9,4.08436889]
[1725988047080,0.03090773,2347.4,2347.0,0.08520579]
[1725988047503,0.03090773,2347.4,2346.5,2.43]
[1725988047504,2.4977,2347.3,2346.5,2.43]
[1725988047670,2.4977,2347.3,2346.8,4.08436889]
[1725988049439,2.4977,2347.3,2346.8,4.50132686]
[1725988050387,0.03090773,2347.4,2347.0,4.08436889]
[1725988051157,2.3867,2347.5,2347.2,4.08436889]
[1725988051381,5.37670773,2347.7,2347.2,4.50132684]
[1725988052001,2.37670773,2347.7,2347.2,4.50132684]
[1725988052206,2.3458,2347.7,2347.2,4.50132684]
[1725988052501,2.3458,2347.7,2347.2,4.58652373]
[1725988053508,2.3458,2347.7,2347.2,4.58652376]
[1725988054618,2.37670773,2347.7,2347.2,4.16956581]
[1725988054928,2.37670773,2347.7,2346.5,3.0]
[1725988054929,2.37670773,2347.7,2347.0,4.08436889]
[1725988055794,2.37670773,2347.7,2347.2,4.08436889]
[1725988056694,2.37670773,2347.7,2347.2,4.16956657]
[1725988058851,0.0039015,2347.8,2347.6,4.08436889]
[1725988059135,0.03480923,2347.8,2347.3,0.08519761]
[1725988059785,2.4287,2347.7,2347.0,4.08436889]
[1725988059901,2.45960773,2347.6,2346.8,4.08436889]
[1725988060242,2.22982244,2347.5,2346.6,4.08436889]
[1725988060448,2.4287,2347.3,2346.6,4.08436889]
[1725988060634,0.03090773,2347.2,2346.7,0.08521807]
[1725988060816,0.03090773,2347.2,2346.6,4.49479598]
[1725988061203,0.03090773,2347.2,2346.7,0.08521515]
[1725988061424,0.03090773,2347.2,2346.7,0.08521511]
[1725988061694,0.03090773,2347.2,2346.8,4.08436889]
[1725988064131,2.45960773,2347.3,2346.8,4.08436889]
[1725988064431,2.45970773,2347.5,2347.0,4.08436889]
[1725988064632,5.26389309,2347.5,2347.0,4.08436889]
[1725988064944,7.28,2347.6,2347.4,4.08436889]
[1725988065246,2.4288,2347.7,2347.4,4.08436889]
[1725988065404,5.4288,2347.7,2347.2,4.08436889]
[1725988065731,5.4288,2347.7,2347.2,4.52511122]
[1725988066246,2.4288,2347.7,2347.2,4.52511122]
[1725988067104,4.66289287,2347.7,2347.2,4.52511122]
[1725988068445,4.66289287,2347.7,2347.3,0.08519661]
[1725988070060,2.23409287,2347.6,2347.3,0.08519661]
[1725988070348,4.66289287,2347.7,2347.3,0.08519661]
[1725988071126,2.23409287,2347.6,2347.3,0.08519661]
[1725988071521,4.66289287,2347.7,2347.3,0.08519661]
[1725988071909,2.23409287,2347.6,2347.3,0.08519661]
[1725988072110,2.4288,2347.7,2347.3,0.08519661]
[1725988072309,2.23611889,2347.6,2347.3,0.08519661]
[1725988072653,2.23611889,2347.6,2347.3,0.46103078]
[1725988072970,2.2578,2347.5,2347.0,0.08519443]
[1725988073174,2.2578,2347.5,2347.0,4.16956332]
[1725988074158,4.49391889,2347.5,2347.0,4.16956332]
[1725988077126,4.49436138,2347.5,2347.0,4.16956332]
[1725988080776,4.49436138,2347.5,2347.2,4.08436889]
[1725988080777,2.2578,2347.5,2347.2,4.08436889]
[1725988081068,4.49445408,2347.5,2347.2,4.08436889]
[1725988082364,4.52536181,2347.5,2347.2,1.88465905]
[1725988082567,4.49445408,2347.5,2347.2,1.88465905]
[1725988084828,2.2578,2347.5,2347.2,1.88465905]
[1725988085042,4.49445408,2347.5,2347.2,1.88465905]
[1725988085876,4.49484227,2347.5,2347.2,1.88465905]
[1725988090179,2.23704227,2347.6,2347.4,1.88465905]
[1725988091671,2.26795,2347.6,2347.2,1.88465905]
[1725988092848,4.53274227,2347.5,2347.1,1.88465905]
[1725988093262,2.2957,2347.5,2347.3,1.88465905]
[1725988093763,4.53274227,2347.5,2347.3,1.88465905]
[1725988095094,2.2957,2347.5,2347.3,1.88465905]
[1725988095241,4.53274227,2347.5,2347.3,1.88465905]
[1725988095665,2.2957,2347.5,2347.3,1.88465905]
[1725988095889,4.53298103,2347.5,2347.3,1.88465905]
[1725988098778,2.23728103,2347.4,2347.3,1.88465905]
[1725988099506,2.26818876,2347.4,2347.1,1.88465905]
[1725988099703,2.2709,2347.3,2346.6,1.88465905]
[1725988099866,2.23728103,2347.1,2346.6,1.88465905]
[1725988100209,0.03090773,2347.0,2346.4,0.019902]
[1725988100504,2.2709,2346.9,2346.5,1.88465905]
[1725988100700,0.03090773,2346.8,2346.5,1.88465905]
[1725988101869,2.2709,2346.9,2346.7,1.88465905]
[1725988102087,0.03090773,2346.9,2346.4,0.019902]
[1725988102303,2.4001,2346.8,2346.5,1.88465905]
[1725988102568,0.03090773,2346.7,2346.5,1.88465905]
[1725988105166,0.03090773,2346.7,2346.4,0.019902]
[1725988105412,0.03090773,2346.7,2346.4,1.90456105]
[1725988107269,6.49866066,2346.9,2346.4,1.90456105]
[1725988107270,2.4057,2346.6,2346.4,1.90456105]
[1725988107468,0.03090773,2346.5,2346.4,1.90456105]
[1725988109205,0.03090773,2346.5,2346.4,0.019902]
[1725988109609,6.56476773,2346.5,2346.4,0.019902]
[1725988109808,5.30310773,2346.5,2346.4,0.019902]
[1725988112683,2.30310773,2346.5,2346.4,0.019902]
[1725988112879,5.30310773,2346.5,2346.4,0.019902]
[1725988114867,3.0,2346.5,2346.4,0.019902]
[1725988115299,0.03090773,2346.6,2346.4,0.019902]
[1725988115469,0.03090773,2346.6,2346.4,1.90456105]
[1725988116309,0.03090773,2346.6,2346.4,0.019902]
[1725988119419,3.03090773,2346.6,2346.4,0.019902]
[1725988120827,2.3724,2346.5,2346.4,0.019902]
[1725988122841,3.03090773,2346.6,2346.4,0.019902]
[1725988124607,0.03090773,2346.6,2346.4,0.019902]
[1725988125841,4.64529967,2347.1,2346.4,1.90456105]
[1725988126040,4.64529967,2347.1,2346.8,1.88465905]
[1725988126041,0.03090773,2347.0,2346.8,1.88465905]
[1725988126733,0.03090773,2347.2,2346.8,1.88465905]
[1725988126900,0.03090773,2347.2,2347.0,1.88465905]
[1725988127099,0.03090773,2347.4,2347.0,1.88465905]
[1725988128022,3.03090773,2347.4,2347.0,1.88465905]
[1725988128359,3.03090773,2347.4,2346.9,4.08437608]
[1725988128863,3.03090773,2347.4,2346.7,6.67498608]
[1725988129043,7.29094773,2347.4,2346.7,6.43947608]
[1725988129660,3.03090773,2347.4,2346.7,6.43947608]
[1725988132454,3.0,2347.3,2346.7,6.43947608]
[1725988132662,0.03090773,2347.4,2346.7,6.43947608]
[1725988133821,4.29093773,2347.4,2346.7,6.43947608]
[1725988134025,4.29093773,2347.4,2346.5,2.3508]
[1725988134026,2.4043,2347.2,2346.5,2.3508]
[1725988134224,0.03090773,2347.1,2346.5,6.43517608]
[1725988134584,0.03090773,2347.1,2346.7,4.08437608]
[1725988137462,2.3591,2347.0,2346.4,0.019902]
[1725988137635,0.03090773,2346.9,2346.4,0.019902]
[1725988139770,0.03090773,2346.9,2346.4,0.67322981]
[1725988141487,0.03090773,2346.9,2346.4,0.019902]
[1725988141687,0.03090773,2346.9,2346.5,4.08437608]
[1725988141862,2.3591,2347.0,2346.4,0.019902]
[1725988141863,0.03090773,2347.0,2346.7,4.08437608]
[1725988142191,0.03090773,2347.0,2346.7,4.71912369]
[1725988142358,2.48850773,2347.3,2346.9,4.08437608]
[1725988142684,0.03090773,2347.2,2346.7,4.08437608]
[1725988143563,2.2567,2347.1,2346.4,2.305102]
[1725988143760,0.03090773,2347.0,2346.4,2.305102]
[1725988144083,0.03090773,2347.0,2346.5,4.08437608]
[1725988145803,2.2537,2346.9,2346.5,4.08437608]
[1725988146088,0.03090773,2346.8,2346.5,4.08437608]
[1725988147280,0.03090773,2346.9,2346.5,4.08437608]
[1725988147480,0.03090773,2346.9,2346.5,4.72301389]
[1725988148294,0.03090773,2346.9,2346.7,4.08437608]
[1725988148496,2.26560534,2347.0,2346.7,4.08437608]
[1725988149054,2.23469761,2346.9,2346.5,4.08437608]
[1725988149255,0.03090773,2347.0,2346.5,4.08437608]
[1725988149256,0.03090773,2346.8,2346.5,4.08437608]
[1725988149455,0.03090773,2346.9,2346.5,4.08437608]
[1725988149692,0.03090773,2346.9,2346.5,4.74603391]
[1725988152422,0.03090773,2346.9,2346.5,4.08437608]
[1725988152761,2.26560534,2346.9,2346.4,2.302002]
[1725988152966,2.26566987,2347.0,2346.5,4.08437608]
[1725988153165,0.03090773,2347.0,2346.5,4.08437608]
[1725988153487,7.55256987,2347.1,2346.7,4.08437608]
[1725988154400,5.23476214,2347.1,2346.7,4.08437608]
[1725988154587,2.23476214,2347.1,2346.7,6.45267608]
[1725988155004,3.03090773,2347.2,2346.7,7.16180747]
[1725988155005,5.26566987,2347.2,2346.7,7.16180747]
[1725988155301,2.26566987,2347.2,2346.9,4.08437608]
[1725988156004,7.28,2347.3,2346.9,4.08437608]
[1725988156005,9.51476214,2347.3,2346.9,4.08437608]
[1725988156322,7.28,2347.3,2347.1,4.08437608]
[1725988156466,2.23476214,2347.5,2347.1,4.08437608]
[1725988156805,0.03090773,2347.7,2347.3,6.45267608]
[1725988156974,9.51866364,2347.8,2347.5,4.08437608]
[1725988157186,0.0039015,2347.8,2347.5,4.08437608]
[1725988157384,0.0039015,2347.8,2347.7,4.08437608]
[1725988157740,0.0039015,2347.8,2347.7,6.86963271]
[1725988170692,0.0238035,2348.3,2347.7,6.86963271]
[1725988170693,0.0238035,2348.3,2347.7,4.50133271]
[1725988171007,0.0238035,2348.3,2348.2,4.08437608]
[1725988171208,0.0238035,2348.3,2348.0,4.08437608]
[1725988171408,0.0238035,2348.3,2348.1,0.08516556]
[1725988171610,0.0238035,2348.3,2348.0,4.08437608]
[1725988173737,0.0238035,2348.3,2348.2,4.08437608]
[1725988178733,0.0238035,2348.3,2348.2,4.16952923]
[1725988178943,0.0238035,2348.3,2348.2,4.08437608]
[1725988180805,0.0238035,2348.3,2348.0,0.08516177]
[1725988181150,2.4686035,2348.3,2347.4,4.08437608]
[1725988181440,2.4686035,2348.3,2347.6,4.08437608]
[1725988181441,0.03090773,2348.2,2347.6,4.08437608]
[1725988181593,0.03090773,2348.2,2347.7,0.08517681]
[1725988182018,2.49951123,2348.3,2347.7,0.08517681]
[1725988182218,2.49951123,2348.3,2347.7,0.5021321]
[1725988182418,2.49951123,2348.3,2347.8,4.16955283]
[1725988182610,0.0238035,2348.3,2348.0,4.08437608]
[1725988182913,0.0238035,2348.3,2348.1,0.0851622]
[1725988184839,0.0238035,2348.3,2348.2,4.08437608]
[1725988185001,0.0238035,2348.3,2348.2,4.50132991]
[1725988187142,0.0238035,2348.3,2348.2,6.95492991]
[1725988188908,0.0238035,2348.3,2348.2,7.04007322]
[1725988196437,0.0238035,2348.3,2348.2,7.59007322]
[1725988196721,0.0238035,2348.3,2348.2,7.04007322]
[1725988198206,0.0238035,2348.3,2348.2,10.04007322]
[1725988198514,0.0238035,2348.3,2348.2,14.6744493]
[1725988198716,0.0238035,2348.3,2348.2,10.59007322]
[1725988198945,0.0238035,2348.3,2348.2,11.02016777]
[1725988199251,0.0238035,2348.3,2348.2,14.6744493]
[1725988199473,0.00170164,2348.6,2348.5,2.2582]
[1725988199658,0.0238035,2348.7,2348.5,7.59959736]
[1725988199962,0.0238035,2349.2,2349.1,8.34257608]
[1725988200260,0.005,2349.6,2349.1,12.72683369]
[1725988200438,0.005,2349.6,2349.5,4.08437608]
[1725988201812,0.005,2349.6,2349.5,4.16947376]
[1725988202127,0.005,2349.6,2349.5,12.60114984]
[1725988202455,0.005,2349.6,2349.5,17.41126482]
[1725988202618,0.005,2349.6,2349.5,12.77688874]
[1725988202963,0.005,2349.6,2349.5,8.42958874]
[1725988203255,0.005,2349.6,2349.5,16.86126482]
[1725988203457,0.0238035,2349.7,2349.5,16.86126482]
[1725988203458,0.0238035,2349.7,2349.5,15.06396482]
[1725988203663,0.0238035,2350.1,2349.6,7.40369648]
[1725988203867,0.0238035,2350.1,2349.7,4.16945416]
[1725988204068,0.0238035,2350.1,2349.7,7.71945416]
[1725988204641,0.0238035,2350.1,2349.7,9.98167608]
[1725988204856,0.0238035,2350.1,2349.7,11.86493244]
[1725988205039,0.0238035,2350.1,2349.7,11.31493244]
[1725988205771,0.0119592,2350.2,2349.7,11.31493244]
[1725988206372,0.0119592,2350.2,2349.7,8.96763244]
[1725988206675,0.0119592,2350.2,2349.7,7.08437608]
[1725988206969,0.0119592,2350.2,2349.7,7.16946819]
[1725988207470,0.0119592,2350.2,2349.7,10.01026819]
[1725988208355,0.0119592,2350.2,2350.0,2.0]
[1725988208876,0.005,2350.6,2350.3,2.0]
[1725988209202,0.005,2350.6,2350.1,4.16944963]
[1725988209203,0.0306223,2351.4,2350.1,4.16944963]
[1725988209204,0.0306223,2351.4,2350.9,2.0]
[1725988209477,0.0306223,2351.4,2351.3,4.08437608]